[Event "Charlotte Fall GM-B 2023"]
[Site "Charlotte"]
[Date "2023.11.20"]
[Round "7.2"]
[White "Hilby, Craig"]
[Black "Cordova, Emilio"]
[Result "1/2-1/2"]
[ECO "B61"]
[WhiteElo "2402"]
[BlackElo "2568"]
[Annotator "RC"]
[PlyCount "73"]
[EventDate "2023.11.17"]
[EventType "tourn"]
[EventCountry "USA"]
[SourceTitle "playchess.com"]
[Source "ChessBase"]
[SourceQuality "1"]
[TimeControl "5400+30"]

1. e4 {[%emt 0:00:01]} c5 {[%emt 0:06:14]} 2. Nf3 {[%emt 0:00:07]} Nc6 {[%emt 0:00:29]} 3. d4 {[%emt 0:00:13]} cxd4 {[%emt 0:00:08]} 4. Nxd4 {[%emt 0:00:03]} Nf6 {[%emt 0:00:36]} 5. Nc3 {[%emt 0:00:14]} d6 {[%emt 0:00:06]} 6. Bg5 {[%emt 0:00:24]} Bd7 {[%emt 0:00:12]} 7. Qd2 {[%emt 0:00:38]} Rc8 {[%emt 0:01:47]} 8. f4 {[%emt 0:02:39]} h6 {[%emt 0:00:15]} 9. Bxf6 {[%emt 0:00:40]} gxf6 {[%emt 0:00:05]} 10. O-O-O {[%emt 0:00:59]} Nxd4 {[%emt 0:00:44]} 11. Qxd4 {[%emt 0:00:07]} Qa5 {[%emt 0:00:07]} 12. Kb1 {[%emt 0:04:21]} Qc5 {[%emt 0:02:13]} 13. Qd3 {[%emt 0:01:17]} h5 {[%emt 0:00:07]} 14. Nd5 {[%emt 0:13:02]} a5 {[%emt 0:00:42]} 15. Be2 {[%emt 0:03:44]} b5 {[%emt 0:00:44]} 16. c3 {[%emt 0:01:30]} Bg7 {[%emt 0:05:34]} 17. f5 {[%emt 0:02:40]} h4 {[%emt 0:00:43]} 18. Qh3 {[%emt 0:16:33]} Kf8 {[%emt 0:02:44]} 19. Rhf1 {[%emt 0:03:35]} b4 {[%emt 0:00:44]} 20. Rc1 {[%emt 0:03:42]} Bh6 {[%emt 0:05:45]} 21. Qxh4 {[%emt 0:01:08]} bxc3 {[%emt 0:00:26]} 22. Rxc3 {[%emt 0:01:23]} Qd4 {[%emt 0:02:05]} 23. Rxc8+ {[%emt 0:07:26]} Bxc8 {[%emt 0:00:21]} 24. Rd1 {[%emt 0:00:15]} Qe5 {[%emt 0:00:52]} 25. Bf3 {[%emt 0:02:27]} Ba6 {[%emt 0:03:00]} 26. Qf2 {[%emt 0:04:07]} Kg7 {[%emt 0:01:47]} 27. Qg3+ {[%emt 0:05:41]} Bg5 {[%emt 0:08:27]} 28. Qxe5 {[%emt 0:00:37]} fxe5 {[%emt 0:00:13]} 29. h3 {[%emt 0:00:12]} Rc8 {[%emt 0:01:31]} 30. a3 {[%emt 0:04:01]} Bb5 {[%emt 0:03:45]} 31. Nc3 {[%emt 0:06:29]} Bc6 {[%emt 0:07:01]} 32. g3 {[%emt 0:01:39]} Be3 {[%emt 0:00:42]} 33. Nd5 {[%emt 0:00:33]} Bxd5 {[%emt 0:00:07]} 34. Rxd5 {[%emt 0:00:48]} Rc1+ {[%emt 0:00:23]} 35. Ka2 {[%emt 0:00:01]} Rf1 {[%emt 0:00:28]} 36. Bg4 {[%emt 0:02:41]} Bc5 {[%emt 0:00:18]} 37. Rd2 {[%emt 0:03:28]} 1/2-1/2

[Event "Charlotte Fall GM-B 2023"]
[Site "Charlotte"]
[Date "2023.11.20"]
[Round "7.3"]
[White "Ringoir, Tanguy"]
[Black "Griffith, Kyron"]
[Result "1/2-1/2"]
[ECO "E08"]
[WhiteElo "2507"]
[BlackElo "2358"]
[Annotator "RC"]
[PlyCount "63"]
[EventDate "2023.11.17"]
[EventType "tourn"]
[EventCountry "USA"]
[SourceTitle "playchess.com"]
[Source "ChessBase"]
[SourceQuality "1"]
[TimeControl "5400+30"]

1. d4 {[%emt 0:00:01]} Nf6 {[%emt 0:02:26]} 2. c4 {[%emt 0:00:07]} e6 {[%emt 0:00:12]} 3. Nf3 {[%emt 0:00:07]} d5 {[%emt 0:00:25]} 4. g3 {[%emt 0:00:06]} Bb4+ {[%emt 0:00:24]} 5. Bd2 {[%emt 0:00:07]} Be7 {[%emt 0:00:07]} 6. Bg2 {[%emt 0:00:07]} O-O {[%emt 0:00:09]} 7. O-O {[%emt 0:00:05]} Nbd7 {[%emt 0:00:14]} 8. Qc2 {[%emt 0:00:22]} c6 {[%emt 0:00:12]} 9. Bf4 {[%emt 0:00:34]} a5 {[%emt 0:00:23]} 10. Rd1 {[%emt 0:00:46]} a4 {[%emt 0:00:13]} 11. a3 {[%emt 0:01:25]} Ne4 {[%emt 0:00:37]} 12. Nfd2 {[%emt 0:10:24]} Nxd2 {[%emt 0:03:53]} 13. Nxd2 {[%emt 0:07:06]} g5 {[%emt 0:00:57]} 14. Be3 {[%emt 0:00:21]} f5 {[%emt 0:01:07]} 15. f3 {[%emt 0:01:51]} f4 {[%emt 0:05:26]} 16. Bf2 {[%emt 0:00:12]} Rf7 {[%emt 0:13:01]} 17. e4 {[%emt 0:05:27]} fxe3 {[%emt 0:00:37]} 18. Bxe3 {[%emt 0:00:03]} Nf8 {[%emt 0:02:25]} 19. Re1 {[%emt 0:01:09]} Bd7 {[%emt 0:11:36]} 20. Bf2 {[%emt 0:02:57]} b5 {[%emt 0:02:09]} 21. cxb5 {[%emt 0:05:07]} cxb5 {[%emt 0:00:08]} 22. Nf1 {[%emt 0:00:36]} b4 {[%emt 0:06:44]} 23. Ne3 {[%emt 0:00:58]} h5 {[%emt 0:02:08]} 24. Qe2 {[%emt 0:09:07]} bxa3 {[%emt 0:01:38]} 25. bxa3 {[%emt 0:00:01]} Bd6 {[%emt 0:01:38]} 26. Nc2 {[%emt 0:02:13]} Rb8 {[%emt 0:02:40]} 27. Qd2 {[%emt 0:02:47]} Rb3 {[%emt 0:01:11]} 28. Rab1 {[%emt 0:13:12]} Rg7 {[%emt 0:06:48]} 29. Ra1 {[%emt 0:07:42]} Qb8 {[%emt 0:05:47]} 30. Re3 {[%emt 0:01:45]} Rb2 {[%emt 0:05:04]} 31. Rc3 {[%emt 0:01:35]} h4 {[%emt 0:01:01]} 32. Qe1 {[%emt 0:00:02]} 1/2-1/2

[Event "Charlotte Fall GM-B 2023"]
[Site "Charlotte"]
[Date "2023.11.20"]
[Round "7.5"]
[White "Stremavicius, Titas"]
[Black "Ippolito, Dean"]
[Result "1-0"]
[ECO "E05"]
[WhiteElo "2563"]
[BlackElo "2356"]
[Annotator "RC"]
[PlyCount "77"]
[EventDate "2023.11.17"]
[EventType "tourn"]
[EventCountry "USA"]
[SourceTitle "playchess.com"]
[Source "ChessBase"]
[SourceQuality "1"]
[TimeControl "5400+30"]

1. d4 {[%emt 0:00:03]} d5 {[%emt 0:00:07]} 2. Nf3 {[%emt 0:00:12]} Nf6 {[%emt 0:00:05]} 3. g3 {[%emt 0:00:10]} e6 {[%emt 0:00:28]} 4. Bg2 {[%emt 0:00:08]} Be7 {[%emt 0:00:03]} 5. O-O {[%emt 0:00:12]} O-O {[%emt 0:00:08]} 6. c4 {[%emt 0:00:07]} dxc4 {[%emt 0:00:16]} 7. Qc2 {[%emt 0:00:09]} a6 {[%emt 0:00:06]} 8. a4 {[%emt 0:00:05]} Bd7 {[%emt 0:00:10]} 9. Qxc4 {[%emt 0:00:16]} Bc6 {[%emt 0:00:08]} 10. Bf4 {[%emt 0:00:07]} Bd6 {[%emt 0:00:27]} 11. Qc1 {[%emt 0:00:08]} a5 {[%emt 0:01:03]} 12. Nc3 {[%emt 0:00:11]} Na6 {[%emt 0:02:00]} 13. Rd1 {[%emt 0:00:15]} Nb4 {[%emt 0:02:47]} 14. Bg5 {[%emt 0:00:14]} Be7 {[%emt 0:01:41]} 15. Qb1 {[%emt 0:00:12]} h6 {[%emt 0:21:40]} 16. Bf4 {[%emt 0:00:44]} Nbd5 {[%emt 0:03:05]} 17. Bd2 {[%emt 0:02:32]} Nxc3 {[%emt 0:04:52]} 18. bxc3 {[%emt 0:02:01]} Be4 {[%emt 0:00:42]} 19. Qb2 {[%emt 0:00:09]} c5 {[%emt 0:01:27]} 20. Ne5 {[%emt 0:05:20]} Bxg2 {[%emt 0:07:33]} 21. Kxg2 {[%emt 0:00:08]} Qd5+ {[%emt 0:02:12]} 22. f3 {[%emt 0:01:18]} cxd4 {[%emt 0:03:16]} 23. cxd4 {[%emt 0:00:50]} Rfd8 {[%emt 0:01:34]} 24. Be1 {[%emt 0:11:50]} Rac8 {[%emt 0:02:21]} 25. Qb1 {[%emt 0:21:06]} Bb4 {[%emt 0:08:57]} 26. Bxb4 {[%emt 0:03:56]} axb4 {[%emt 0:00:03]} 27. Qxb4 {[%emt 0:00:17]} Rc2 {[%emt 0:00:11]} 28. Kf2 {[%emt 0:04:26]} Ne4+ {[%emt 0:12:22]} 29. fxe4 {[%emt 0:04:18]} Qxe4 {[%emt 0:00:02]} 30. Qe1 {[%emt 0:00:12]} Rxd4 {[%emt 0:00:28]} 31. Nf3 {[%emt 0:00:24]} Rxa4 {[%emt 0:03:42]} 32. Rxa4 {[%emt 0:01:04]} Qxa4 {[%emt 0:00:03]} 33. Rd8+ {[%emt 0:00:49]} Kh7 {[%emt 0:00:04]} 34. Qd1 {[%emt 0:02:01]} Qe4 {[%emt 0:20:10]} 35. Rd7 {[%emt 0:01:58]} f5 {[%emt 0:01:51]} 36. Qd3 {[%emt 0:00:33]} b5 {[%emt 0:01:53]} 37. Qxe4 {[%emt 0:00:32]} fxe4 {[%emt 0:00:01]} 38. Nd4 {[%emt 0:00:19]} Rd2 {[%emt 0:00:04]} 39. Ke3 {[%emt 0:00:25]} 1-0

[Event "Charlotte Fall GM-B 2023"]
[Site "Charlotte"]
[Date "2023.11.21"]
[Round "8.1"]
[White "Gedajlovic, Max"]
[Black "Ippolito, Dean"]
[Result "1-0"]
[ECO "D31"]
[WhiteElo "2407"]
[BlackElo "2356"]
[Annotator "RC"]
[PlyCount "49"]
[EventDate "2023.11.17"]
[EventType "tourn"]
[EventCountry "USA"]
[SourceTitle "playchess.com"]
[Source "ChessBase"]
[SourceQuality "1"]
[TimeControl "5400+30"]

1. d4 {[%emt 0:01:31]} d5 {[%emt 0:00:57]} 2. c4 {[%emt 0:00:23]} e6 {[%emt 0:00:05]} 3. Nc3 {[%emt 0:00:08]} Be7 {[%emt 0:00:03]} 4. cxd5 {[%emt 0:01:33]} exd5 {[%emt 0:00:05]} 5. Bf4 {[%emt 0:00:14]} c6 {[%emt 0:01:03]} 6. Qc2 {[%emt 0:01:05]} Nf6 {[%emt 0:00:39]} 7. h3 {[%emt 0:01:02]} g6 {[%emt 0:12:53]} 8. e3 {[%emt 0:00:28]} Bf5 {[%emt 0:00:35]} 9. Qd2 {[%emt 0:00:15]} h5 {[%emt 0:04:37]} 10. Nf3 {[%emt 0:03:42]} Bd6 {[%emt 0:02:34]} 11. Bd3 {[%emt 0:11:58]} Ne4 {[%emt 0:11:49]} 12. Bxe4 {[%emt 0:03:44]} dxe4 {[%emt 0:08:58]} 13. Ng5 {[%emt 0:03:29]} Bb4 {[%emt 0:02:42]} 14. f3 {[%emt 0:08:49]} exf3 {[%emt 0:02:53]} 15. e4 {[%emt 0:01:18]} fxg2 {[%emt 0:01:52]} 16. Rg1 {[%emt 0:01:18]} f6 {[%emt 0:11:42]} 17. exf5 {[%emt 0:01:25]} fxg5 {[%emt 0:00:05]} 18. Bxg5 {[%emt 0:02:55]} Be7 {[%emt 0:00:10]} 19. Qe3 {[%emt 0:08:54]} gxf5 {[%emt 0:00:36]} 20. O-O-O {[%emt 0:05:27]} Kd7 {[%emt 0:14:02]} 21. Rxg2 {[%emt 0:01:10]} Bxg5 {[%emt 0:01:02]} 22. Rxg5 {[%emt 0:00:07]} Re8 {[%emt 0:02:28]} 23. Rg7+ {[%emt 0:03:32]} Re7 {[%emt 0:00:35]} 24. Rdg1 {[%emt 0:00:43]} Qe8 {[%emt 0:05:43]} 25. Qe5 {[%emt 0:00:59]} 1-0

[Event "Charlotte Fall GM-B 2023"]
[Site "Charlotte"]
[Date "2023.11.21"]
[Round "8.2"]
[White "Shmeliov, Denis"]
[Black "Stremavicius, Titas"]
[Result "1/2-1/2"]
[ECO "B67"]
[WhiteElo "2397"]
[BlackElo "2563"]
[Annotator "RC"]
[PlyCount "26"]
[EventDate "2023.11.17"]
[EventType "tourn"]
[EventCountry "USA"]
[SourceTitle "playchess.com"]
[Source "ChessBase"]
[SourceQuality "1"]
[TimeControl "5400+30"]

1. e4 {[%emt 0:00:06]} c5 {[%emt 0:00:33]} 2. Nf3 {[%emt 0:00:10]} Nc6 {[%emt 0:00:28]} 3. d4 {[%emt 0:00:27]} cxd4 {[%emt 0:00:05]} 4. Nxd4 {[%emt 0:00:05]} Nf6 {[%emt 0:02:19]} 5. Nc3 {[%emt 0:00:06]} d6 {[%emt 0:00:07]} 6. Bg5 {[%emt 0:00:41]} Bd7 {[%emt 0:00:43]} 7. Qd2 {[%emt 0:00:10]} a6 {[%emt 0:00:30]} 8. O-O-O {[%emt 0:01:51]} e6 {[%emt 0:00:12]} 9. Kb1 {[%emt 0:01:15]} Be7 {[%emt 0:03:27]} 10. f3 {[%emt 0:00:08]} Nxd4 {[%emt 0:00:18]} 11. Qxd4 {[%emt 0:00:55]} Qc7 {[%emt 0:00:17]} 12. Qd2 {[%emt 0:01:15]} b5 {[%emt 0:00:49]} 13. g4 {[%emt 0:01:14]} h5 {[%emt 0:13:09]} 1/2-1/2

[Event "Charlotte Fall GM-B 2023"]
[Site "Charlotte"]
[Date "2023.11.21"]
[Round "8.3"]
[White "Griffith, Kyron"]
[Black "Korley, Kassa"]
[Result "1/2-1/2"]
[ECO "B11"]
[WhiteElo "2358"]
[BlackElo "2457"]
[Annotator "RC"]
[PlyCount "106"]
[EventDate "2023.11.17"]
[EventType "tourn"]
[EventCountry "USA"]
[SourceTitle "playchess.com"]
[Source "ChessBase"]
[SourceQuality "1"]
[TimeControl "5400+30"]

1. e4 {[%emt 0:03:39]} c6 {[%emt 0:00:08]} 2. Nc3 {[%emt 0:00:31]} d5 {[%emt 0:00:07]} 3. Nf3 {[%emt 0:00:05]} Bg4 {[%emt 0:00:05]} 4. h3 {[%emt 0:00:06]} Bh5 {[%emt 0:01:04]} 5. exd5 {[%emt 0:01:20]} cxd5 {[%emt 0:00:05]} 6. g4 {[%emt 0:00:33]} Bg6 {[%emt 0:00:05]} 7. Ne5 {[%emt 0:00:47]} Nc6 {[%emt 0:01:11]} 8. d4 {[%emt 0:01:18]} e6 {[%emt 0:01:01]} 9. h4 {[%emt 0:02:44]} f6 {[%emt 0:01:28]} 10. Nxg6 {[%emt 0:01:24]} hxg6 {[%emt 0:00:05]} 11. Be3 {[%emt 0:03:01]} Bd6 {[%emt 0:07:20]} 12. Qd2 {[%emt 0:03:27]} Qd7 {[%emt 0:05:14]} 13. O-O-O {[%emt 0:02:52]} O-O-O {[%emt 0:00:05]} 14. Be2 {[%emt 0:05:16]} Nge7 {[%emt 0:00:31]} 15. Kb1 {[%emt 0:22:49]} a6 {[%emt 0:00:56]} 16. a3 {[%emt 0:04:59]} Kb8 {[%emt 0:01:17]} 17. Rh3 {[%emt 0:07:19]} g5 {[%emt 0:07:45]} 18. Rdh1 {[%emt 0:02:17]} Rxh4 {[%emt 0:01:07]} 19. Rxh4 {[%emt 0:00:13]} gxh4 {[%emt 0:00:06]} 20. Rxh4 {[%emt 0:00:12]} e5 {[%emt 0:06:45]} 21. dxe5 {[%emt 0:05:33]} Bxe5 {[%emt 0:00:03]} 22. Bb6 {[%emt 0:01:55]} Bc7 {[%emt 0:05:44]} 23. Bxc7+ {[%emt 0:02:06]} Qxc7 {[%emt 0:00:03]} 24. Rh7 {[%emt 0:01:54]} g5 {[%emt 0:03:23]} 25. Na4 {[%emt 0:04:23]} Qd6 {[%emt 0:01:58]} 26. Qc3 {[%emt 0:05:58]} Rc8 {[%emt 0:11:56]} 27. Qc5 {[%emt 0:03:34]} Qd8 {[%emt 0:19:51]} 28. Qb6 {[%emt 0:05:54]} Qxb6 {[%emt 0:00:35]} 29. Nxb6 {[%emt 0:00:01]} Rd8 {[%emt 0:00:02]} 30. Na4 {[%emt 0:02:18]} f5 {[%emt 0:04:17]} 31. gxf5 {[%emt 0:00:23]} Nxf5 {[%emt 0:00:02]} 32. Nc5 {[%emt 0:01:31]} Nfe7 {[%emt 0:00:21]} 33. Rg7 {[%emt 0:00:31]} Rh8 {[%emt 0:02:07]} 34. Rxg5 {[%emt 0:00:14]} Rh1+ {[%emt 0:00:07]} 35. Ka2 {[%emt 0:00:03]} Rh2 {[%emt 0:00:10]} 36. Nd3 {[%emt 0:00:41]} Nd4 {[%emt 0:00:51]} 37. Rh5 {[%emt 0:02:53]} Rxh5 {[%emt 0:00:34]} 38. Bxh5 {[%emt 0:00:00]} Nxc2 {[%emt 0:00:07]} 39. Kb3 {[%emt 0:00:48]} Nd4+ {[%emt 0:00:01]} 40. Kc3 {[%emt 0:00:08]} Ndc6 {[%emt 0:00:09]} 41. b4 {[%emt 0:00:31]} b6 {[%emt 0:00:39]} 42. a4 {[%emt 0:00:49]} Kc7 {[%emt 0:00:08]} 43. Be8 {[%emt 0:01:38]} Nd8 {[%emt 0:00:21]} 44. Bh5 {[%emt 0:00:58]} Kd6 {[%emt 0:01:20]} 45. Bg4 {[%emt 0:00:16]} a5 {[%emt 0:00:51]} 46. bxa5 {[%emt 0:00:42]} bxa5 {[%emt 0:00:02]} 47. Nc1 {[%emt 0:00:25]} Nb7 {[%emt 0:03:32]} 48. Nb3 {[%emt 0:00:14]} Ke5 {[%emt 0:00:51]} 49. Be2 {[%emt 0:01:03]} Kd6 {[%emt 0:02:18]} 50. Bb5 {[%emt 0:01:11]} Ng6 {[%emt 0:02:39]} 51. Kd4 {[%emt 0:00:22]} Nf4 {[%emt 0:00:09]} 52. Ke3 {[%emt 0:00:52]} Ne6 {[%emt 0:00:13]} 53. f4 {[%emt 0:00:21]} Nec5 {[%emt 0:06:02]} 1/2-1/2

[Event "Charlotte Fall GM-B 2023"]
[Site "Charlotte"]
[Date "2023.11.21"]
[Round "8.5"]
[White "Wang, Tianqi"]
[Black "Hilby, Craig"]
[Result "1-0"]
[ECO "A29"]
[WhiteElo "2350"]
[BlackElo "2402"]
[Annotator "RC"]
[PlyCount "85"]
[EventDate "2023.11.17"]
[EventType "tourn"]
[EventCountry "USA"]
[SourceTitle "playchess.com"]
[Source "ChessBase"]
[SourceQuality "1"]
[TimeControl "5400+30"]

1. c4 {[%emt 0:00:04]} Nf6 {[%emt 0:00:58]} 2. g3 {[%emt 0:00:06]} e5 {[%emt 0:01:07]} 3. Bg2 {[%emt 0:00:10]} d5 {[%emt 0:00:16]} 4. cxd5 {[%emt 0:00:04]} Nxd5 {[%emt 0:00:04]} 5. Nf3 {[%emt 0:00:06]} Nc6 {[%emt 0:00:17]} 6. O-O {[%emt 0:00:07]} Nb6 {[%emt 0:00:43]} 7. Nc3 {[%emt 0:00:26]} Be7 {[%emt 0:01:18]} 8. b3 {[%emt 0:00:10]} O-O {[%emt 0:01:02]} 9. Bb2 {[%emt 0:00:04]} Re8 {[%emt 0:02:27]} 10. Rc1 {[%emt 0:00:27]} Bf8 {[%emt 0:01:48]} 11. d3 {[%emt 0:01:46]} Nd4 {[%emt 0:10:11]} 12. Ne4 {[%emt 0:03:52]} a5 {[%emt 0:05:29]} 13. a3 {[%emt 0:06:53]} c6 {[%emt 0:01:22]} 14. Re1 {[%emt 0:07:23]} Bg4 {[%emt 0:11:04]} 15. Ned2 {[%emt 0:08:30]} Qd7 {[%emt 0:03:53]} 16. e3 {[%emt 0:05:22]} Nxf3+ {[%emt 0:01:10]} 17. Bxf3 {[%emt 1:03:30]} h5 {[%emt 0:06:05]} 18. Be2 {[%emt 0:00:00]} Rad8 {[%emt 0:06:00]} 19. f3 {[%emt 0:00:00]} Bf5 {[%emt 0:02:14]} 20. Ne4 {[%emt 0:00:00]} Nd5 {[%emt 0:05:50]} 21. Bf1 {[%emt 0:00:00]} b6 {[%emt 0:01:36]} 22. Qc2 {[%emt 0:00:00]} c5 {[%emt 0:01:09]} 23. Nf2 {[%emt 0:00:00]} Bg6 {[%emt 0:01:57]} 24. Rcd1 {[%emt 0:00:00]} b5 {[%emt 0:03:12]} 25. Bh3 {[%emt 0:00:00]} Qa7 {[%emt 0:00:36]} 26. e4 {[%emt 0:00:00]} Nc7 {[%emt 0:01:51]} 27. f4 {[%emt 0:00:00]} f6 {[%emt 0:01:00]} 28. Kh1 {[%emt 0:00:00]} Bf7 {[%emt 0:01:02]} 29. f5 {[%emt 0:00:00]} a4 {[%emt 0:01:37]} 30. bxa4 {[%emt 0:00:00]} bxa4 {[%emt 0:00:02]} 31. Qe2 {[%emt 0:00:00]} Nb5 {[%emt 0:00:30]} 32. g4 {[%emt 0:00:00]} h4 {[%emt 0:02:38]} 33. Rg1 {[%emt 0:00:00]} c4 {[%emt 0:02:51]} 34. g5 {[%emt 0:00:00]} fxg5 {[%emt 0:04:20]} 35. Rxg5 {[%emt 0:00:00]} cxd3 {[%emt 0:02:07]} 36. Nxd3 {[%emt 0:00:00]} Qe7 {[%emt 0:02:56]} 37. Rgg1 {[%emt 0:00:00]} Bc4 {[%emt 0:01:26]} 38. Qf3 {[%emt 0:00:00]} Nd4 {[%emt 0:01:13]} 39. Qg4 {[%emt 0:11:00]} Nxf5 {[%emt 0:03:28]} 40. exf5 {[%emt 0:00:00]} Bxd3 {[%emt 0:00:58]} 41. Rxd3 {[%emt 0:01:00]} Qb7+ {[%emt 0:01:37]} 42. Bg2 {[%emt 0:00:00]} Qxb2 {[%emt 0:00:38]} 43. Rxd8 {[%emt 0:00:00]} 1-0

[Event "Charlotte Fall GM-B 2023"]
[Site "Charlotte"]
[Date "2023.11.21"]
[Round "9.1"]
[White "Hilby, Craig"]
[Black "Gedajlovic, Max"]
[Result "1/2-1/2"]
[ECO "E05"]
[WhiteElo "2402"]
[BlackElo "2407"]
[Annotator "RC"]
[PlyCount "49"]
[EventDate "2023.11.17"]
[EventType "tourn"]
[EventCountry "USA"]
[SourceTitle "playchess.com"]
[Source "ChessBase"]
[SourceQuality "1"]
[TimeControl "5400+30"]

1. Nf3 {[%emt 0:03:55]} d5 {[%emt 0:00:09]} 2. d4 {[%emt 0:00:09]} Nf6 {[%emt 0:00:23]} 3. c4 {[%emt 0:00:06]} e6 {[%emt 0:00:09]} 4. g3 {[%emt 0:00:07]} Be7 {[%emt 0:01:56]} 5. Bg2 {[%emt 0:00:29]} O-O {[%emt 0:00:08]} 6. O-O {[%emt 0:00:09]} dxc4 {[%emt 0:00:05]} 7. Ne5 {[%emt 0:00:47]} Nd5 {[%emt 0:00:09]} 8. Nxc4 {[%emt 0:01:40]} b5 {[%emt 0:00:08]} 9. Ne3 {[%emt 0:02:34]} c6 {[%emt 0:04:48]} 10. Nc3 {[%emt 0:04:59]} Ba6 {[%emt 0:03:38]} 11. a3 {[%emt 0:11:02]} Qb6 {[%emt 0:06:05]} 12. Ne4 {[%emt 0:01:47]} f5 {[%emt 0:07:36]} 13. Ng5 {[%emt 0:02:47]} Bxg5 {[%emt 0:02:12]} 14. Nxd5 {[%emt 0:00:15]} cxd5 {[%emt 0:00:07]} 15. Bxg5 {[%emt 0:00:08]} Nc6 {[%emt 0:00:24]} 16. Rc1 {[%emt 0:08:55]} Rac8 {[%emt 0:00:46]} 17. b4 {[%emt 0:11:38]} Qxd4 {[%emt 0:08:31]} 18. Qb3 {[%emt 0:00:32]} Qg4 {[%emt 0:06:02]} 19. Rxc6 {[%emt 0:04:53]} Rxc6 {[%emt 0:00:15]} 20. Bxd5 {[%emt 0:00:05]} Rb6 {[%emt 0:14:06]} 21. Bxe6+ {[%emt 0:00:09]} Kh8 {[%emt 0:00:02]} 22. Be3 {[%emt 0:01:09]} Rb7 {[%emt 0:01:23]} 23. Qd5 {[%emt 0:03:36]} Rbb8 {[%emt 0:04:17]} 24. Bxa7 {[%emt 0:17:38]} Bb7 {[%emt 0:21:41]} 25. Qe5 {[%emt 0:01:48]} 1/2-1/2

[Event "Charlotte Fall GM-B 2023"]
[Site "Charlotte"]
[Date "2023.11.21"]
[Round "9.2"]
[White "Ringoir, Tanguy"]
[Black "Wang, Tianqi"]
[Result "1/2-1/2"]
[ECO "D70"]
[WhiteElo "2507"]
[BlackElo "2350"]
[Annotator "RC"]
[PlyCount "67"]
[EventDate "2023.11.17"]
[EventType "tourn"]
[EventCountry "USA"]
[SourceTitle "playchess.com"]
[Source "ChessBase"]
[SourceQuality "1"]
[TimeControl "5400+30"]

1. d4 {[%emt 0:00:02]} Nf6 {[%emt 0:00:06]} 2. c4 {[%emt 0:00:03]} g6 {[%emt 0:00:10]} 3. f3 {[%emt 0:00:07]} d5 {[%emt 0:00:06]} 4. cxd5 {[%emt 0:00:05]} Nxd5 {[%emt 0:00:04]} 5. e4 {[%emt 0:00:05]} Nb6 {[%emt 0:00:05]} 6. Nc3 {[%emt 0:00:05]} Bg7 {[%emt 0:00:09]} 7. Be3 {[%emt 0:00:07]} O-O {[%emt 0:00:11]} 8. Qd2 {[%emt 0:00:06]} e5 {[%emt 0:00:14]} 9. d5 {[%emt 0:00:05]} c6 {[%emt 0:00:12]} 10. h4 {[%emt 0:00:09]} cxd5 {[%emt 0:00:13]} 11. exd5 {[%emt 0:00:07]} N8d7 {[%emt 0:00:04]} 12. h5 {[%emt 0:00:07]} Nf6 {[%emt 0:00:31]} 13. hxg6 {[%emt 0:00:09]} fxg6 {[%emt 0:00:06]} 14. O-O-O {[%emt 0:00:09]} Bd7 {[%emt 0:00:30]} 15. Kb1 {[%emt 0:00:11]} Rc8 {[%emt 0:00:52]} 16. d6 {[%emt 0:00:18]} e4 {[%emt 0:00:50]} 17. fxe4 {[%emt 0:00:07]} Ng4 {[%emt 0:00:06]} 18. Bg5 {[%emt 0:00:11]} Qe8 {[%emt 0:00:07]} 19. Nf3 {[%emt 0:00:07]} Rf7 {[%emt 0:00:50]} 20. Qe1 {[%emt 0:00:18]} Rc5 {[%emt 0:00:33]} 21. Bd2 {[%emt 0:00:14]} Be6 {[%emt 0:00:32]} 22. e5 {[%emt 0:00:20]} Na4 {[%emt 0:00:32]} 23. Ne4 {[%emt 0:00:42]} Bf5 {[%emt 0:00:22]} 24. Bc1 {[%emt 0:00:49]} Rc8 {[%emt 0:01:00]} 25. Ka1 {[%emt 0:00:47]} Bxe5 {[%emt 0:00:38]} 26. Nxe5 {[%emt 0:00:25]} Qxe5 {[%emt 0:00:27]} 27. Nc3 {[%emt 0:00:24]} Nxc3 {[%emt 0:00:39]} 28. Qxe5 {[%emt 0:00:08]} Nxe5 {[%emt 0:00:04]} 29. bxc3 {[%emt 0:00:06]} h5 {[%emt 0:01:13]} 30. Rd5 {[%emt 0:00:19]} Nc4 {[%emt 0:00:21]} 31. Be2 {[%emt 0:00:18]} Rd7 {[%emt 0:00:35]} 32. Bf4 {[%emt 0:00:08]} Nb6 {[%emt 0:00:26]} 33. Ra5 {[%emt 0:00:13]} Nc4 {[%emt 0:00:18]} 34. Rd5 {[%emt 0:00:06]} 1/2-1/2

[Event "Charlotte Fall GM-B 2023"]
[Site "Charlotte"]
[Date "2023.11.21"]
[Round "9.3"]
[White "Korley, Kassa"]
[Black "Cordova, Emilio"]
[Result "0-1"]
[ECO "A17"]
[WhiteElo "2457"]
[BlackElo "2568"]
[Annotator "RC"]
[PlyCount "56"]
[EventDate "2023.11.17"]
[EventType "tourn"]
[EventCountry "USA"]
[SourceTitle "playchess.com"]
[Source "ChessBase"]
[SourceQuality "1"]
[TimeControl "5400+30"]

1. Nf3 {[%emt 0:00:02]} b6 {[%emt 0:02:32]} 2. g3 {[%emt 0:02:43]} Bb7 {[%emt 0:00:06]} 3. Bg2 {[%emt 0:00:02]} e6 {[%emt 0:00:49]} 4. O-O {[%emt 0:00:06]} c5 {[%emt 0:00:37]} 5. c4 {[%emt 0:00:12]} Nf6 {[%emt 0:00:45]} 6. Nc3 {[%emt 0:02:40]} Be7 {[%emt 0:00:52]} 7. d3 {[%emt 0:02:07]} O-O {[%emt 0:01:35]} 8. e4 {[%emt 0:00:09]} d6 {[%emt 0:00:11]} 9. Re1 {[%emt 0:08:40]} a6 {[%emt 0:01:18]} 10. h3 {[%emt 0:03:10]} Nbd7 {[%emt 0:01:38]} 11. Be3 {[%emt 0:05:34]} Rc8 {[%emt 0:01:40]} 12. Qe2 {[%emt 0:01:29]} Re8 {[%emt 0:01:27]} 13. g4 {[%emt 0:00:35]} Nf8 {[%emt 0:02:29]} 14. Nh2 {[%emt 0:06:11]} e5 {[%emt 0:00:45]} 15. f4 {[%emt 0:01:30]} exf4 {[%emt 0:00:08]} 16. Bxf4 {[%emt 0:00:01]} N6d7 {[%emt 0:00:59]} 17. Nf3 {[%emt 0:00:43]} Ng6 {[%emt 0:01:57]} 18. Bg3 {[%emt 0:00:32]} Nde5 {[%emt 0:00:27]} 19. Rf1 {[%emt 0:00:43]} Bf6 {[%emt 0:00:43]} 20. Nd2 {[%emt 0:01:04]} Nc6 {[%emt 0:10:04]} 21. Nf3 {[%emt 0:02:45]} Nd4 {[%emt 0:03:25]} 22. Qd2 {[%emt 0:00:25]} b5 {[%emt 0:04:39]} 23. cxb5 {[%emt 0:00:07]} axb5 {[%emt 0:00:16]} 24. Nxd4 {[%emt 0:00:09]} Bxd4+ {[%emt 0:00:06]} 25. Kh1 {[%emt 0:00:03]} b4 {[%emt 0:02:13]} 26. Ne2 {[%emt 0:00:09]} Be5 {[%emt 0:00:19]} 27. d4 {[%emt 0:01:57]} cxd4 {[%emt 0:01:09]} 28. Qxb4 {[%emt 0:00:07]} Ba6 {[%emt 0:00:31]} 0-1